fUSD/lending_fUSD_20250624
["ID","MTS","AMOUNT","RATE_DAILY","PERIOD"]
[367271837,1750723849199,-490.0,0.00021917,2]
[367271838,1750723849209,-490.0,0.00021917,2]
[367271839,1750723849219,-490.0,0.00021917,2]
[367271840,1750723849228,-490.0,0.00021917,2]
[367271841,1750723849238,-490.0,0.00021917,2]
[367271842,1750723849248,-490.0,0.00021917,2]
[367271843,1750723849258,-490.0,0.00021917,2]
[367271844,1750723849268,-490.0,0.00021917,2]
[367271845,1750723849282,-490.0,0.00021917,2]
[367271846,1750723849291,-528.96555486,0.00021917,2]
[367271847,1750723849301,-490.0,0.00021917,2]
[367271848,1750723849311,-490.0,0.00021917,2]
[367271849,1750723849320,-490.0,0.00021917,2]
[367271850,1750723849330,-490.0,0.00021917,2]
[367271851,1750723849340,-490.0,0.00021917,2]
[367271852,1750723849349,-490.0,0.00021917,2]
[367271853,1750723849358,-490.0,0.00021917,2]
[367271854,1750723849368,-490.0,0.00021917,2]
[367271855,1750723849378,-490.0,0.00021917,2]
[367271856,1750723849387,-490.0,0.00021917,2]
[367271857,1750723849397,-490.0,0.00021917,2]
[367271858,1750723849408,-490.0,0.00021917,2]
[367271859,1750723849420,-490.0,0.00021917,2]
[367271860,1750723849430,-490.0,0.00021917,2]
[367271861,1750723849440,-490.0,0.00021917,2]
[367271862,1750723849451,-490.0,0.00021917,2]
[367271863,1750723849461,-490.0,0.00021917,2]
[367271864,1750723849471,-490.0,0.00021917,2]
[367271865,1750723849481,-490.0,0.00021917,2]
[367271866,1750723849491,-490.0,0.00021917,2]
[367271867,1750723849786,-490.0,0.00021917,2]
[367271868,1750723849808,-490.0,0.00021917,2]
[367271869,1750723849818,-490.0,0.00021917,2]
[367271870,1750723849828,-490.0,0.00021917,2]
[367271871,1750723849838,-490.0,0.00021917,2]
[367271872,1750723849848,-490.0,0.00021917,2]
[367271873,1750723849857,-490.0,0.00021917,2]
[367271874,1750723849867,-490.0,0.00021917,2]
[367271875,1750723849879,-897.81,0.00021917,2]
[367271876,1750723849888,-395.65240136,0.00021917,2]
[367271877,1750723849899,-589.16,0.00021917,2]
[367271878,1750723849908,-490.0,0.00021917,2]
[367271879,1750723849918,-490.0,0.00021917,2]
[367271880,1750723849927,-490.0,0.00021917,2]
[367271881,1750723849936,-237.58432377,0.00021917,2]
[367271882,1750723849946,-490.0,0.00021917,2]
[367271883,1750723849956,-524.07454754,0.00021917,2]
[367271884,1750723849966,-494.74602092,0.00021917,2]
[367271885,1750723849975,-490.0,0.00021917,2]
[367271886,1750723849985,-490.0,0.00021917,2]
[367271887,1750723849995,-490.0,0.00021917,2]
[367271888,1750723850004,-490.0,0.00021917,2]
[367271889,1750723850013,-490.0,0.00021917,2]
[367271890,1750723850023,-490.0,0.00021917,2]
[367271891,1750723850033,-490.0,0.00021917,2]
[367271892,1750723850043,-618.74,0.00021917,2]
[367271893,1750723850052,-490.0,0.00021917,2]
[367271894,1750723850062,-490.0,0.00021917,2]
[367271895,1750723850072,-490.0,0.00021917,2]
[367271896,1750723850082,-490.0,0.00021917,2]
[367271897,1750723850091,-490.0,0.00021917,2]
[367271898,1750723850101,-490.0,0.00021917,2]
[367271899,1750723850110,-490.0,0.00021917,2]
[367271900,1750723850120,-490.0,0.00021917,2]
[367271901,1750723850131,-490.0,0.00021917,2]
[367271902,1750723850140,-490.0,0.00021917,2]
[367271903,1750723850150,-490.0,0.00021917,2]
[367271904,1750723850159,-490.0,0.00021917,2]
[367271905,1750723850168,-490.0,0.00021917,2]
[367271906,1750723850178,-490.0,0.00021917,2]
[367271907,1750723850187,-490.0,0.00021917,2]
[367271908,1750723850196,-490.0,0.00021917,2]
[367271909,1750723850206,-490.0,0.00021917,2]
[367271910,1750723850215,-495.46,0.00021917,2]
[367271911,1750723850225,-490.0,0.00021917,2]
[367271912,1750723850234,-242.50381168,0.00021917,2]
[367271913,1750723850243,-490.0,0.00021917,2]
[367271914,1750723850253,-490.0,0.00021917,2]
[367271915,1750723850262,-503.43,0.00021917,2]
[367271916,1750723850272,-491.68,0.00021917,2]
[367271917,1750723850281,-490.0,0.00021917,2]
[367271918,1750723850290,-490.0,0.00021917,2]
[367271919,1750723850300,-490.0,0.00021917,2]
[367271920,1750723850309,-490.0,0.00021917,2]
[367271921,1750723850319,-490.0,0.00021917,2]
[367271922,1750723850329,-490.0,0.00021917,2]
[367271923,1750723850338,-153.79660099,0.00021917,2]
[367271924,1750723850347,-490.0,0.00021917,2]
[367271925,1750723850357,-490.0,0.00021917,2]
[367271926,1750723850366,-160.69909012,0.00021917,2]
[367271927,1750723850375,-490.0,0.00021917,2]
[367271928,1750723850386,-490.0,0.00021917,2]
[367271929,1750723850396,-490.0,0.00021917,2]
[367271930,1750723850405,-490.0,0.00021917,2]
[367271931,1750723850416,-490.0,0.00021917,2]
[367271932,1750723850426,-499.85,0.00021917,2]
[367271933,1750723850436,-490.0,0.00021917,2]
[367271934,1750723850445,-490.0,0.00021917,2]
[367271935,1750723850455,-490.0,0.00021917,2]
[367271936,1750723850465,-447.11301207,0.00021917,2]
[367271937,1750723850475,-490.0,0.00021917,2]
[367271938,1750723850484,-490.0,0.00021917,2]
[367271939,1750723850495,-490.0,0.00021917,2]
[367271940,1750723850505,-490.0,0.00021917,2]
[367271941,1750723850514,-490.0,0.00021917,2]
[367271942,1750723850524,-496.75,0.00021917,2]
[367271943,1750723850533,-490.0,0.00021917,2]
[367271944,1750723850542,-490.0,0.00021917,2]
[367271945,1750723850552,-143.94934567,0.00021917,2]
[367271946,1750723850572,-346.05065433,0.00021917,2]
[367271947,1750723850582,-490.0,0.00021917,2]
[367271948,1750723850592,-490.0,0.00021917,2]
[367271949,1750723850602,-490.0,0.00021917,2]
[367271950,1750723850612,-490.0,0.00021917,2]
[367271951,1750723850621,-490.0,0.00021917,2]
[367271952,1750723850633,-490.0,0.00021917,2]
[367271953,1750723850642,-450.0,0.00021917,2]
[367271954,1750723850652,-490.0,0.00021917,2]
[367271955,1750723850661,-490.0,0.00021917,2]
[367271956,1750723850671,-490.0,0.00021917,2]
[367271957,1750723850681,-490.0,0.00021917,2]
[367271958,1750723850691,-490.0,0.00021917,2]
[367271959,1750723850700,-490.0,0.00021917,2]
[367271960,1750723850710,-490.0,0.00021917,2]
[367271961,1750723850720,-505.25,0.00021917,2]
[367271962,1750723850729,-490.0,0.00021917,2]
[367271963,1750723850739,-580.76,0.00021917,2]
[367271964,1750723850748,-490.0,0.00021917,2]
[367271965,1750723850758,-490.0,0.00021917,2]
[367271966,1750723850768,-490.0,0.00021917,2]
[367271967,1750723850777,-490.0,0.00021917,2]
[367271968,1750723850787,-573.27,0.00021917,2]
[367271969,1750723850796,-591.71,0.00021917,2]
[367271970,1750723850806,-490.0,0.00021917,2]
[367271971,1750723850816,-490.0,0.00021917,2]
[367271972,1750723850825,-490.0,0.00021917,2]
[367271973,1750723850835,-574.16,0.00021917,2]
[367271974,1750723850845,-490.0,0.00021917,2]
[367271975,1750723850854,-490.0,0.00021917,2]
[367271976,1750723850864,-490.0,0.00021917,2]
[367271977,1750723850874,-490.0,0.00021917,2]
[367271978,1750723850885,-490.0,0.00021917,2]
[367271979,1750723850895,-490.0,0.00021917,2]
[367271980,1750723850905,-626.05791343,0.00021917,2]
[367271981,1750723850915,-490.0,0.00021917,2]
[367271982,1750723850924,-490.0,0.00021917,2]
[367271983,1750723850934,-490.0,0.00021917,2]
[367271984,1750723850944,-490.0,0.00021917,2]
[367271985,1750723850954,-490.0,0.00021917,2]
[367271986,1750723850963,-490.0,0.00021917,2]
[367271987,1750723850973,-490.0,0.00021917,2]
[367271988,1750723850982,-490.0,0.00021917,2]
[367271989,1750723850992,-568.31,0.00021917,2]
[367271990,1750723851001,-490.0,0.00021917,2]
[367271991,1750723851010,-490.0,0.00021917,2]
[367271992,1750723851020,-490.0,0.00021917,2]
[367271993,1750723851029,-490.0,0.00021917,2]
[367271994,1750723851039,-490.0,0.00021917,2]
[367271995,1750723851049,-490.0,0.00021917,2]
[367271996,1750723851058,-526.95,0.00021917,2]
[367271997,1750723851068,-490.0,0.00021917,2]
[367271998,1750723851077,-490.0,0.00021917,2]
[367271999,1750723851087,-723.31,0.00021917,2]
[367272000,1750723851097,-490.0,0.00021917,2]
[367272001,1750723851106,-490.0,0.00021917,2]
[367272002,1750723851115,-490.0,0.00021917,2]
[367272003,1750723851125,-490.0,0.00021917,2]
[367272004,1750723851136,-490.0,0.00021917,2]
[367272005,1750723851146,-490.0,0.00021917,2]
[367272006,1750723851155,-490.0,0.00021917,2]
[367272007,1750723851165,-490.0,0.00021917,2]
[367272008,1750723851174,-363.25804236,0.00021917,2]
[367272009,1750723851184,-490.0,0.00021917,2]
[367272010,1750723851193,-490.0,0.00021917,2]
[367272011,1750723851203,-490.0,0.00021917,2]
[367272012,1750723851213,-515.24,0.00021917,2]
[367272013,1750723851223,-490.0,0.00021917,2]
[367272014,1750723851233,-490.0,0.00021917,2]
[367272015,1750723851243,-490.0,0.00021917,2]
[367272016,1750723851253,-490.0,0.00021917,2]
[367272017,1750723851263,-490.0,0.00021917,2]
[367272018,1750723851273,-1193.009106,0.00021917,2]
[367272019,1750723851282,-154.565203,0.00021917,2]
[367272020,1750723851292,-686.48,0.00021917,2]
[367272021,1750723851302,-490.0,0.00021917,2]
[367272022,1750723851312,-490.0,0.00021917,2]
[367272023,1750723851321,-497.18,0.00021917,2]
[367272024,1750723851331,-490.0,0.00021917,2]
[367272025,1750723851341,-490.0,0.00021917,2]
[367272026,1750723851350,-156.751577,0.00021917,2]
[367272027,1750723851360,-490.0,0.00021917,2]
[367272028,1750723851369,-490.0,0.00021917,2]
[367272029,1750723851379,-937.9,0.00021917,2]
[367272030,1750723851389,-490.0,0.00021917,2]
[367272031,1750723851398,-490.0,0.00021917,2]
[367272032,1750723851408,-490.0,0.00021917,2]
[367272033,1750723851421,-671.31,0.00021917,2]
[367272034,1750723851431,-490.0,0.00021917,2]
[367272035,1750723851440,-490.0,0.00021917,2]
[367272036,1750723851448,-490.0,0.00021917,2]
[367272037,1750723851459,-490.0,0.00021917,2]
[367272038,1750723851468,-490.0,0.00021917,2]
[367272039,1750723851477,-490.0,0.00021917,2]
[367272040,1750723851486,-490.0,0.00021917,2]
[367272041,1750723851496,-490.0,0.00021917,2]
[367272042,1750723851505,-490.0,0.00021917,2]
[367272043,1750723851515,-490.0,0.00021917,2]
[367272044,1750723851524,-490.0,0.00021917,2]
[367272045,1750723851533,-490.0,0.00021917,2]
[367272046,1750723851542,-929.939471,0.00021917,2]
[367272047,1750723851552,-490.0,0.00021917,2]
[367272048,1750723851562,-490.0,0.00021917,2]
[367272049,1750723851571,-490.0,0.00021917,2]
[367272050,1750723851580,-490.0,0.00021917,2]
[367272051,1750723851590,-490.0,0.00021917,2]
[367272052,1750723851599,-490.0,0.00021917,2]
[367272053,1750723851608,-490.0,0.00021917,2]
[367272054,1750723851617,-490.0,0.00021917,2]
[367272055,1750723851627,-490.0,0.00021917,2]
[367272056,1750723851638,-490.0,0.00021917,2]
[367272057,1750723851647,-490.0,0.00021917,2]
[367272058,1750723851656,-526.5,0.00021917,2]
[367272059,1750723851667,-490.0,0.00021917,2]
[367272060,1750723851676,-490.0,0.00021917,2]
[367272061,1750723851686,-490.0,0.00021917,2]
[367272062,1750723851695,-490.0,0.00021917,2]
[367272063,1750723851704,-490.0,0.00021917,2]
[367272064,1750723851714,-500.0,0.00021917,2]
[367272065,1750723851723,-500.0,0.00021917,2]
[367272066,1750723851733,-490.0,0.00021917,2]
[367272067,1750723851743,-622.74,0.00021917,2]
[367272068,1750723851752,-490.0,0.00021917,2]
[367272069,1750723851762,-528.0,0.00021917,2]
[367272070,1750723851771,-993.44,0.00021917,2]
[367272071,1750723851780,-490.0,0.00021917,2]
[367272072,1750723851790,-490.0,0.00021917,2]
[367272073,1750723851799,-490.0,0.00021917,2]
[367272074,1750723851808,-490.0,0.00021917,2]
[367272075,1750723851818,-490.0,0.00021917,2]
[367272076,1750723851828,-1281.23,0.00021917,2]
[367272077,1750723851837,-2526.699513,0.00021917,2]
[367272078,1750723851846,-490.0,0.00021917,2]
[367272079,1750723851855,-490.0,0.00021917,2]
[367272080,1750723851865,-490.0,0.00021917,2]
[367272081,1750723851875,-491.6765996,0.00021917,2]
[367272082,1750723851886,-650.36,0.00021917,2]
[367272083,1750723851895,-490.0,0.00021917,2]
[367272084,1750723851904,-490.0,0.00021917,2]
[367272085,1750723851914,-490.0,0.00021917,2]
[367272086,1750723851923,-490.0,0.00021917,2]
[367272087,1750723851932,-490.0,0.00021917,2]
[367272088,1750723851942,-950.85,0.00021917,2]
[367272089,1750723851951,-1100.82,0.00021917,2]
[367272090,1750723851960,-490.0,0.00021917,2]
[367272091,1750723851970,-490.0,0.00021917,2]
[367272092,1750723851979,-551.06,0.00021917,2]
[367272093,1750723851988,-490.0,0.00021917,2]
[367272094,1750723851998,-490.0,0.00021917,2]
[367272095,1750723852007,-403.89348079,0.00021917,2]
[367272096,1750723852017,-508.42,0.00021917,2]
[367272097,1750723852026,-154.8104788,0.00021917,2]
[367272098,1750723852035,-490.0,0.00021917,2]
[367272099,1750723852045,-490.0,0.00021917,2]
[367272100,1750723852054,-490.0,0.00021917,2]
[367272101,1750723852063,-490.0,0.00021917,2]
[367272102,1750723852073,-869.22,0.00021917,2]
[367272103,1750723852082,-281.75851069,0.00021917,2]
[367272104,1750723852092,-490.0,0.00021917,2]
[367272105,1750723852101,-490.0,0.00021917,2]
[367272106,1750723852110,-490.0,0.00021917,2]
[367272107,1750723852120,-490.0,0.00021917,2]
[367272108,1750723852130,-2407.89,0.00021917,2]
[367272109,1750723852139,-490.0,0.00021917,2]
[367272110,1750723852148,-490.0,0.00021917,2]
[367272111,1750723852211,-490.0,0.00021917,2]
[367272112,1750723852220,-1099.6,0.00021917,2]
[367272113,1750723852229,-490.0,0.00021917,2]
[367272114,1750723852239,-212.99967281,0.00021917,2]
[367272115,1750723852248,-1297.17,0.00021917,2]
[367272116,1750723852258,-490.0,0.00021917,2]
[367272117,1750723852267,-490.0,0.00021917,2]
[367272118,1750723852276,-490.0,0.00021917,2]
[367272119,1750723852285,-555.89,0.00021917,2]
[367272120,1750723852295,-490.0,0.00021917,2]
[367272121,1750723852304,-490.0,0.00021917,2]
[367272122,1750723852313,-961.95,0.00021917,2]
[367272123,1750723852322,-490.0,0.00021917,2]
[367272124,1750723852331,-490.0,0.00021917,2]
[367272125,1750723852340,-490.0,0.00021917,2]
[367272126,1750723852349,-544.26,0.00021917,2]
[367272127,1750723852358,-490.0,0.00021917,2]
[367272128,1750723852367,-490.0,0.00021917,2]
[367272129,1750723852376,-635.86557176,0.00021917,2]
[367272130,1750723852386,-1232.33,0.00021917,2]
[367272131,1750723852396,-490.0,0.00021917,2]
[367272132,1750723852405,-490.0,0.00021917,2]
[367272133,1750723852415,-490.0,0.00021917,2]
[367272134,1750723852426,-490.0,0.00021917,2]
[367272135,1750723852436,-490.0,0.00021917,2]
[367272136,1750723852445,-490.0,0.00021917,2]
[367272137,1750723852456,-490.0,0.00021917,2]
[367272138,1750723852465,-490.0,0.00021917,2]
[367272139,1750723852475,-547.22,0.00021917,2]
[367272140,1750723852484,-490.0,0.00021917,2]
[367272141,1750723852494,-490.0,0.00021917,2]
[367272142,1750723852503,-490.0,0.00021917,2]
[367272143,1750723852513,-1693.09,0.00021917,2]
[367272144,1750723852522,-597.1,0.00021917,2]
[367272145,1750723852531,-490.0,0.00021917,2]
[367272146,1750723852540,-773.99,0.00021917,2]
[367272147,1750723852549,-566.48235008,0.00021917,2]
[367272148,1750723852559,-490.0,0.00021917,2]
[367272149,1750723852568,-490.0,0.00021917,2]
[367272150,1750723852577,-577.52,0.00021917,2]
[367272151,1750723852587,-581.83,0.00021917,2]
[367272152,1750723852596,-1123.83,0.00021917,2]
[367272153,1750723852605,-490.0,0.00021917,2]
[367272154,1750723852615,-708.09,0.00021917,2]
[367272155,1750723852624,-490.0,0.00021917,2]
[367272156,1750723852634,-490.0,0.00021917,2]
[367272157,1750723852643,-490.0,0.00021917,2]
[367272158,1750723852653,-490.0,0.00021917,2]
[367272159,1750723852663,-490.0,0.00021917,2]
[367272160,1750723852672,-533.94,0.00021917,2]
[367272161,1750723852682,-490.0,0.00021917,2]
[367272162,1750723852691,-754.88,0.00021917,2]
[367272163,1750723852701,-1072.76,0.00021917,2]
[367272164,1750723852711,-490.0,0.00021917,2]
[367272165,1750723852720,-490.0,0.00021917,2]
[367272166,1750723852730,-490.0,0.00021917,2]
[367272167,1750723852739,-490.0,0.00021917,2]
[367272168,1750723852749,-490.0,0.00021917,2]
[367272169,1750723852758,-490.0,0.00021917,2]
[367272170,1750723852767,-490.0,0.00021917,2]
[367272171,1750723852776,-240.80053373,0.00021917,2]
[367272172,1750723852795,-249.19946627,0.00021917,2]
[367272173,1750723852804,-490.0,0.00021917,2]
[367272174,1750723852813,-100.80053373,0.00021917,2]
[367272175,1750723887456,151.98,0.00013699,2]
[367272212,1750724021062,152.32,0.00027397,120]
[367272255,1750724300269,2092.79,0.00027397,120]
[367272263,1750724646552,4405.9,0.00027397,120]
[367272265,1750724709060,152.27,0.00026004,120]
[367272295,1750724951761,202.0,0.00018883,2]
[367272299,1750724975487,700.0,0.00026,120]
[367272301,1750724997263,151.98,0.00013699,2]
[367272304,1750725015284,600.0,0.00027,120]
[367272306,1750725031512,-724.51906524,0.000205,2]
[367272307,1750725031522,-202.0,0.00020528,4]
[367272308,1750725031531,-802.54641668,0.00020683,2]
[367272309,1750725031543,-197.45358332,0.00020683,2]
[367272310,1750725031552,-150.0,0.00020688,2]
[367272311,1750725031561,-150.0,0.00020688,2]
[367272312,1750725031571,-150.0,0.00020688,2]
[367272313,1750725031580,-150.0,0.00020688,2]
[367272314,1750725031591,-150.0,0.00020688,2]
[367272315,1750725031600,-200.0,0.00020721,2]
[367272316,1750725031610,-152.27,0.00020803,2]
[367272317,1750725031619,-666.0,0.00020804,2]
[367272318,1750725031629,-370.76578326,0.00020874,2]
[367272319,1750725031659,-829.23421674,0.00020874,2]
[367272320,1750725031671,-3729.0,0.00020875,2]
[367272321,1750725031680,-299.17,0.00020941,2]
[367272322,1750725031690,-600.0,0.00020954,2]
[367272323,1750725031699,-300.0,0.00020955,2]
[367272324,1750725031708,-5370.59578326,0.00020957,2]
[367272325,1750725031719,-367.335,0.00020957,2]
[367272346,1750725037298,-1366.41975491,0.00020957,2]
[367272347,1750725037350,-2673.29946183,0.00020957,2]
[367272348,1750725037359,-250.0,0.00021082,2]
[367272349,1750725037369,-778.19037574,0.00021183,2]
[367272350,1750725037566,-175.35727446,0.00021183,2]
[367272351,1750725037575,-1670.93037253,0.00021212,2]
[367272352,1750725037622,-1050.3968,0.00021212,2]
[367272531,1750725039530,-1015.04058804,0.00021212,2]
[367272532,1750725039542,-11827.89223943,0.00021212,2]
[367272533,1750725039551,-2182.825,0.00021212,2]
[367272534,1750725039560,-166.995,0.00021212,2]
[367272535,1750725039570,-933.33346353,0.00021771,2]
[367272537,1750725039579,-2917.12943599,0.000218,2]
[367272539,1750725039588,-5610.36503632,0.00021807,2]
[367272541,1750725039598,-60929.5325,0.00021817,2]
[367272543,1750725039607,-1000.0,0.00021817,2]
[367272545,1750725039617,-340.4528,0.00021817,2]
[367272547,1750725039626,-4250.6887,0.00021817,2]
[367272549,1750725039636,-195.5976,0.00021817,2]
[367272551,1750725039647,-5000.0,0.00021817,2]
[367272552,1750725039656,-291.2573,0.00021817,3]
[367272554,1750725039666,-164.14980345,0.00021817,2]
[367272556,1750725039676,-5217.9824926,0.00021817,2]
[367272558,1750725039686,-1000.0,0.00021817,5]
[367272560,1750725039695,-17635.65185521,0.00021821,2]
[367272562,1750725039712,-3819.19737214,0.00021821,2]
[367272564,1750725039724,-1533.06836664,0.00021821,2]
[367272567,1750725039735,-1891.83830736,0.00021821,2]
[367272569,1750725039747,-1740.0911033,0.00021821,2]
[367272571,1750725039759,-1199.30233872,0.00021821,2]
[367272573,1750725039770,-1034.0,0.00021821,2]
[367272577,1750725039799,-512.82691053,0.00021821,2]
[367272883,1750725042758,-1251.0058222,0.00021717,2]
[367272885,1750725042768,-634.0237461,0.00021821,2]
[367272887,1750725042777,-150.0,0.00021837,4]
[367272889,1750725042787,-933.33346335,0.0002186,2]
[367272891,1750725042797,-250.0,0.00021871,2]
[367272893,1750725042807,-250.0,0.00021871,2]
[367272895,1750725042819,-350.0,0.00021895,2]
[367272898,1750725042832,-1837.69123946,0.000219,6]
[367272900,1750725042844,-6783.37929882,0.000219,6]
[367272902,1750725042855,-619.06,0.000219,2]
[367272904,1750725042864,-166.08,0.00021907,2]
[367272906,1750725042874,-166.08,0.00021907,2]
[367272908,1750725042886,-166.08,0.00021907,2]
[367272910,1750725042896,-166.08,0.00021907,2]
[367272912,1750725042906,-2987.49,0.00021907,2]
[367272914,1750725042916,-372.05,0.00021907,3]
[367272917,1750725042926,-490.0,0.00021917,2]
[367272919,1750725042936,-490.0,0.00021917,2]
[367272921,1750725042945,-490.0,0.00021917,2]
[367272923,1750725042955,-490.0,0.00021917,2]
[367272925,1750725042965,-490.0,0.00021917,2]
[367272927,1750725042975,-386.18310866,0.00021917,2]
[367272929,1750725042987,-103.81689134,0.00021917,2]
[367272931,1750725042997,-498.0,0.00021917,2]
[367272933,1750725043007,-490.0,0.00021917,2]
[367272935,1750725043016,-490.0,0.00021917,2]
[367272937,1750725043026,-583.22614602,0.00021917,2]
[367272939,1750725043035,-186.33335065,0.00021917,2]
[367272942,1750725043051,-303.66664935,0.00021917,2]
[367272944,1750725043061,-318.46471203,0.00021917,2]
[367272946,1750725043070,-490.0,0.00021917,2]
[367272948,1750725043080,-490.0,0.00021917,2]
[367272950,1750725043090,-353.5173362,0.00021917,2]
[367272952,1750725043101,-136.4826638,0.00021917,2]
[367272954,1750725043111,-378.0548222,0.00021917,2]
[367272957,1750725043123,-482.24,0.00021917,2]
[367272959,1750725043135,-139.7051778,0.00021917,2]
[367272961,1750725043145,-490.0,0.00021917,2]
[367272963,1750725043155,-490.0,0.00021917,2]
[367272965,1750725043165,-494.8286241,0.00021917,2]
[367272967,1750725043175,-490.0,0.00021917,2]
[367272969,1750725043184,-490.0,0.00021917,2]
[367272971,1750725043193,-577.42,0.00021917,2]
[367272973,1750725043203,-490.0,0.00021917,2]
[367272975,1750725043213,-210.0,0.00021917,2]
[367272977,1750725043222,-490.0,0.00021917,2]
[367272980,1750725043231,-490.0,0.00021917,2]
[367272983,1750725043240,-237.74805441,0.00021917,2]
[367272987,1750725043249,-440.0,0.00021917,2]
[367272990,1750725043259,-490.0,0.00021917,2]
[367272993,1750725043268,-490.0,0.00021917,2]
[367272996,1750725043277,-490.0,0.00021917,2]
[367272999,1750725043287,-494.13399258,0.00021917,2]
[367273001,1750725043296,-777.94926462,0.00021917,2]
[367273004,1750725043306,-425.58351895,0.00021917,2]
[367273007,1750725043315,-490.0,0.00021917,2]
[367273010,1750725043325,-363.49631869,0.00021917,2]
[367273013,1750725043334,-490.0,0.00021917,2]
[367273015,1750725043343,-490.0,0.00021917,2]
[367273017,1750725043352,-490.0,0.00021917,2]
[367273019,1750725043362,-490.0,0.00021917,2]
[367273058,1750725043713,-283.47324968,0.00021917,2]
[367273061,1750725043736,-871.818254,0.00021917,2]
[367273063,1750725043746,-490.0,0.00021917,2]
[367273065,1750725043755,-490.0,0.00021917,2]
[367273068,1750725043765,-490.0,0.00021917,2]
[367273071,1750725043774,-490.0,0.00021917,2]
[367273074,1750725043784,-490.0,0.00021917,2]
[367273076,1750725043802,-476.82990715,0.00021917,2]
[367273077,1750725043839,-13.17009285,0.00021917,2]
[367273078,1750725043849,-288.82990715,0.00021917,2]
[367273079,1750725043861,-419.3400005,0.00021917,2]
[367273081,1750725043881,-1660.61088635,0.00021917,2]
[367273083,1750725043892,-490.0,0.00021917,2]
[367273085,1750725043903,-490.0,0.00021917,2]
[367273087,1750725043913,-1118.446037,0.00021917,2]
[367273089,1750725043924,-490.0,0.00021917,2]
[367273091,1750725043933,-490.0,0.00021917,2]
[367273093,1750725043943,-490.0,0.00021917,2]
[367273095,1750725043953,-490.0,0.00021917,2]
[367273097,1750725043962,-490.0,0.00021917,2]
[367273099,1750725043973,-608.99,0.00021917,2]
[367273101,1750725043982,-490.0,0.00021917,2]
[367273103,1750725043992,-490.0,0.00021917,2]
[367273105,1750725044002,-490.0,0.00021917,2]
[367273107,1750725044012,-490.0,0.00021917,2]
[367273109,1750725044022,-490.0,0.00021917,2]
[367273112,1750725044032,-490.0,0.00021917,2]
[367273114,1750725044042,-490.0,0.00021917,2]
[367273116,1750725044051,-490.0,0.00021917,2]
[367273118,1750725044061,-490.0,0.00021917,2]
[367273120,1750725044071,-490.0,0.00021917,2]
[367273122,1750725044081,-490.0,0.00021917,2]
[367273124,1750725044090,-250.0,0.00021917,2]
[367273126,1750725044100,-490.0,0.00021917,2]
[367273128,1750725044111,-490.0,0.00021917,2]
[367273130,1750725044121,-490.0,0.00021917,2]
[367273132,1750725044130,-512.41567235,0.00021917,2]
[367273134,1750725044140,-490.0,0.00021917,2]
[367273136,1750725044151,-490.0,0.00021917,2]
[367273138,1750725044160,-490.0,0.00021917,2]